[Event "Hungary Olimpic Hopes 2022"]
[Site "Tapolca"]
[Date "2022.06.24"]
[Round "3.5"]
[White "Szarvas, Nora Orsolya"]
[Black "Karacsonyi, Luca"]
[Result "1-0"]
[ECO "B48"]
[WhiteElo "1669"]
[BlackElo "1834"]
[Annotator "NA RC"]
[PlyCount "63"]
[EventDate "2022.06.23"]
[EventType "swiss"]
[EventCountry "HUN"]
[SourceTitle "playchess.com"]
[Source "ChessBase"]
[SourceQuality "1"]
[TimeControl "5400+30"]

1. e4 {[%emt 0:00:03]} c5 {[%emt 0:00:06]} 2. Nf3 {[%emt 0:00:15]} Nc6 {[%emt 0:00:12]} 3. d4 {[%emt 0:00:07]} cxd4 {[%emt 0:00:06]} 4. Nxd4 {[%emt 0:00:04]} e6 {[%emt 0:00:12]} 5. Nc3 {[%emt 0:00:12]} Qc7 {[%emt 0:00:06]} 6. Be3 {[%emt 0:00:10]} a6 {[%emt 0:00:12]} 7. Bd3 {[%emt 0:00:05]} Nf6 {[%emt 0:00:06]} 8. O-O {[%emt 0:00:25]} b5 {[%emt 0:00:07]} 9. a3 {[%emt 0:01:14]} Be7 {[%emt 0:00:44]} 10. f4 {[%emt 0:01:09]} d6 {[%emt 0:00:21]} 11. Qf3 {[%emt 0:04:29]} Bb7 {[%emt 0:02:59]} 12. Qg3 {[%emt 0:04:37]} h5 {[%emt 0:13:11]} (12... Nxd4 $11 {was preferrable.} 13. Bxd4 O-O) 13. h3 {[%emt 0:09:03]} h4 {[%emt 0:14:56]} 14. Qf2 {[%emt 0:00:42]} Nh5 {[%emt 0:01:58]} 15. Nce2 {[%emt 0:02:32]} Bf6 {[%emt 0:03:59]} 16. c3 {[%emt 0:07:52]} Na5 {[%emt 0:04:55]} 17. Nxe6 {[%emt 0:08:14]} Qe7 {[%emt 0:10:42]} 18. Ng5 {[%emt 0:04:23]} Nc4 {[%emt 0:04:01]} 19. Bc1 {[%emt 0:06:23]} Bxg5 {[%emt 0:11:17]} 20. fxg5 {[%emt 0:00:16]} Ng3 {[%emt 0:01:28]} 21. Nxg3 {[%emt 0:01:14]} hxg3 {[%emt 0:00:44]} 22. Qxg3 {[%emt 0:00:14]} Ne5 {[%emt 0:01:54]} 23. Bc2 {[%emt 0:00:59]} O-O {[%emt 0:02:17]} 24. Bf4 {[%emt 0:02:49]} Rad8 {[%emt 0:02:53]} 25. Bxe5 {[%emt 0:01:18]} dxe5 {[%emt 0:00:26]} 26. Rf5 {[%emt 0:00:18]} Rfe8 $2 {[%emt 0:03:00]} (26... Rd2) 27. Raf1 {[%emt 0:00:43]} Qc5+ {[%emt 0:01:47]} 28. Kh2 {[%emt 0:00:36]} Re7 {[%emt 0:02:34]} 29. Bb3 {[%emt 0:00:37]} Rdd7 {[%emt 0:02:07]} 30. g6 {[%emt 0:00:16]} Bxe4 {[%emt 0:01:13]} 31. gxf7+ {[%emt 0:00:23]} Kf8 {[%emt 0:00:26] [#]} 32. Qh4 {[%emt 0:00:29]} 1-0

[Event "Hungary Olimpic Hopes 2022"]
[Site "Tapolca"]
[Date "2022.06.24"]
[Round "3.6"]
[White "Eros, Vivien"]
[Black "Beznicza, Mira"]
[Result "1/2-1/2"]
[ECO "C11"]
[WhiteElo "1592"]
[BlackElo "1635"]
[Annotator "NA RC"]
[PlyCount "74"]
[EventDate "2022.06.23"]
[EventType "swiss"]
[EventCountry "HUN"]
[SourceTitle "playchess.com"]
[Source "ChessBase"]
[SourceQuality "1"]
[TimeControl "5400+30"]

1. e4 {[%emt 0:00:02]} e6 {[%emt 0:00:22]} 2. d4 {[%emt 0:00:04]} d5 {[%emt 0:00:31]} 3. Nc3 {[%emt 0:00:05]} Nf6 {[%emt 0:00:24]} 4. e5 {[%emt 0:00:06]} Nfd7 {[%emt 0:00:28]} 5. f4 {[%emt 0:00:17]} c5 {[%emt 0:01:23]} 6. Nf3 {[%emt 0:00:08]} Nc6 {[%emt 0:03:01]} 7. Be3 {[%emt 0:01:08]} Be7 {[%emt 0:01:50]} 8. g3 {[%emt 0:08:42]} O-O {[%emt 0:04:18]} 9. Bg2 {[%emt 0:04:46]} b6 {[%emt 0:07:08]} 10. O-O {[%emt 0:12:00]} f6 {[%emt 0:11:07]} 11. Bh3 Ndb8 12. exf6 {[%emt 0:02:13]} Bxf6 {[%emt 0:02:32]} 13. Ne2 {[%emt 0:05:05]} Qe7 {[%emt 0:12:10]} 14. c3 {[%emt 0:02:43]} Nd7 {[%emt 0:03:06]} 15. Ne5 Bxe5 16. fxe5 {[%emt 0:04:13]} Rxf1+ {[%emt 0:00:59]} 17. Qxf1 {[%emt 0:00:00]} Ba6 {[%emt 0:00:50]} 18. Qg2 {[%emt 0:07:42]} Rf8 {[%emt 0:05:42]} 19. Nf4 {[%emt 0:02:55]} Nd8 {[%emt 0:03:05]} 20. Nxd5 {[%emt 0:12:36]} Qf7 {[%emt 0:05:13]} 21. Nc7 {[%emt 0:00:51]} Bd3 {[%emt 0:03:35]} 22. Qd2 {[%emt 0:01:41]} c4 {[%emt 0:03:27]} 23. Nb5 {[%emt 0:05:23]} Qg6 {[%emt 0:02:07]} 24. Nd6 Nf7 {[%emt 0:00:53]} 25. Nxf7 {[%emt 0:01:46]} Rxf7 {[%emt 0:03:45]} 26. Bf1 Qe4 {[%emt 0:00:41]} 27. Bxd3 {[%emt 0:05:14]} cxd3 {[%emt 0:01:27]} 28. Bf4 {[%emt 0:02:53]} h6 {[%emt 0:03:53]} 29. h4 {[%emt 0:01:49]} Nf8 {[%emt 0:00:46]} 30. Re1 {[%emt 0:01:37]} Qf5 {[%emt 0:00:30]} 31. Be3 {[%emt 0:11:55]} Ng6 {[%emt 0:07:09]} 32. Bf2 {[%emt 0:04:11]} Qg4 33. Qd1 Qf5 {[%emt 0:01:45]} 34. Rf1 {[%emt 0:03:00]} Qe4 {[%emt 0:01:20]} 35. Be1 {[%emt 0:00:41]} Qe3+ {[%emt 0:02:32]} 36. Kg2 {[%emt 0:00:07]} Qe4+ {[%emt 0:01:16]} 37. Kg1 Qe3+ {[%emt 0:00:47]} 1/2-1/2

[Event "Hungary Olimpic Hopes 2022"]
[Site "Tapolca"]
[Date "2022.06.24"]
[Round "3.7"]
[White "Balazs, Sztella Anna"]
[Black "Toth, Timea"]
[Result "1-0"]
[ECO "B37"]
[WhiteElo "1572"]
[BlackElo "1964"]
[Annotator "TA"]
[PlyCount "47"]
[EventDate "2022.06.23"]
[EventType "swiss"]
[EventCountry "HUN"]
[SourceTitle "playchess.com"]
[Source "ChessBase"]
[SourceQuality "1"]
[TimeControl "5400+30"]

{[%evp 19,47,42,84,68,79,75,81,64,111,126,153,151,235,245,247,245,283,274,277,271,268,271,246,165,172,52,54,0,29998,29999]} 1. e4 {[%emt 0:00:01]} c5 {[%emt 0:00:03]} 2. Nf3 {[%emt 0:00:05]} Nc6 {[%emt 0:00:03]} 3. d4 {[%emt 0:00:05]} cxd4 {[%emt 0:00:03]} 4. Nxd4 {[%emt 0:00:05]} g6 {[%emt 0:00:03]} 5. c4 {[%emt 0:00:06]} Bg7 {[%emt 0:00:02]} 6. Nc2 {[%emt 0:00:05]} Nf6 {[%emt 0:00:11]} 7. Nc3 {[%emt 0:00:07]} O-O {[%emt 0:00:32]} 8. Be2 {[%emt 0:00:17]} d6 {[%emt 0:00:30]} 9. O-O {[%emt 0:00:08]} Bd7 {[%emt 0:03:28]} 10. Be3 {[%emt 0:02:29]} Qc8 {[%emt 0:26:34]} 11. f3 {[%emt 0:01:45] B38: Sicilian: Maroczy Bind with 5...Bg7 and 7...0-0.} Re8 {[%emt 0:24:37]} 12. Qd2 {[%emt 0:14:57]} b6 {[#]} 13. Nd5 $146 {White is more active. White is better.} ({Predecessor:} 13. Rac1 Qb7 14. Rfd1 Rac8 15. b3 Ne5 16. Kh1 h5 17. h3 Kh7 18. f4 Nc6 19. Bf3 {1-0 (60) Paehtz,E (2479)-Nguyen,H (2016) Germany 2020}) 13... Nxd5 {[%emt 0:12:04]} (13... Nd8 $14) 14. cxd5 $16 {[%emt 0:00:41]} Na5 {[%emt 0:01:02]} 15. Na3 {[%emt 0:03:14]} Qb7 (15... Qb8 $16 {might work better.} 16. Rac1 Nb7) 16. b4 $18 {[%cal Bb2b4,Bb4b5][%mdl 32]} Bxa1 {[%emt 0:07:12]} 17. Rxa1 {[%emt 0:00:35]} Nc6 {[%emt 0:00:08]} 18. dxc6 {[%emt 0:00:07]} Bxc6 {[%emt 0:01:16]} 19. b5 {[%emt 0:00:18]} Bd7 {[%emt 0:18:57]} 20. Bc4 Rac8 21. Bh6 {[%emt 0:02:23] Threatens to win with Qd4. This bishop pair is nice.} Qc7 {[%emt 0:00:47]} 22. Qf4 {[%emt 0:02:42]} ({Resist} 22. Qd4 $6 Qc5 23. Qxc5 Rxc5 $14) (22. Qc3 $18 {[%csl Gh6][%cal Rc3g7]} e5 23. Qb3) 22... Qc5+ {[%emt 0:00:27]} 23. Kf1 {[%emt 0:00:54]} ({White should try} 23. Qe3 $1 $14) 23... Qxa3 $4 {[%mdl 8192] [#]} (23... Be6 $11 24. Bxe6 fxe6) 24. Qxf7+ {[%emt 0:00:11] Weighted Error Value: White=0.23 (precise) /Black=0.62} 1-0

[Event "Hungary Olimpic Hopes 2022"]
[Site "Tapolca"]
[Date "2022.06.24"]
[Round "3.8"]
[White "Kovacs, Reka"]
[Black "Horvath, Greta"]
[Result "1-0"]
[ECO "C55"]
[WhiteElo "1685"]
[BlackElo "1365"]
[Annotator "NA RC"]
[PlyCount "89"]
[EventDate "2022.06.23"]
[EventType "swiss"]
[EventCountry "HUN"]
[SourceTitle "playchess.com"]
[Source "ChessBase"]
[SourceQuality "1"]
[TimeControl "5400+30"]

1. e4 {[%emt 0:00:02]} e5 {[%emt 0:00:04]} 2. Nf3 {[%emt 0:00:05]} Nc6 {[%emt 0:00:04]} 3. Bc4 {[%emt 0:00:06]} Nf6 {[%emt 0:00:13]} 4. d3 {[%emt 0:00:09]} d5 {[%emt 0:00:45]} 5. exd5 {[%emt 0:00:32]} Nxd5 {[%emt 0:00:22]} 6. c3 {[%emt 0:00:34]} Be7 {[%emt 0:03:04]} 7. Qb3 {[%emt 0:03:10]} Be6 {[%emt 0:18:57]} 8. Qxb7 Na5 9. Qb5+ {[%emt 0:12:41]} c6 {[%emt 0:01:36]} 10. Qa4 Qc7 {[%emt 0:06:05]} 11. Bxd5 {[%emt 0:04:10]} Bxd5 {[%emt 0:00:29]} 12. Qg4 {[%emt 0:00:45]} Bf6 {[%emt 0:01:59]} 13. O-O {[%emt 0:01:54]} O-O 14. Nbd2 {[%emt 0:08:41]} Rad8 {[%emt 0:08:21]} 15. Ne4 {[%emt 0:06:02]} Bxe4 16. Qxe4 Qd7 {[%emt 0:04:32]} 17. Rd1 {[%emt 0:02:25]} Nb7 {[%emt 0:08:47]} 18. Be3 {[%emt 0:06:38]} Rfe8 {[%emt 0:03:59]} 19. Qa4 Ra8 {[%emt 0:02:13]} 20. Qc2 {[%emt 0:08:03]} Nd6 21. Nd2 {[%emt 0:00:54]} Nf5 {[%emt 0:02:44]} 22. Ne4 {[%emt 0:00:33]} Bd8 {[%emt 0:02:26]} 23. Bc5 {[%emt 0:04:26]} Bb6 24. Qe2 {[%emt 0:03:17]} Bxc5 {[%emt 0:02:54]} 25. Nxc5 {[%emt 0:00:03]} Qd5 {[%emt 0:00:32]} 26. Qe4 {[%emt 0:01:05]} Nd6 {[%emt 0:00:46]} 27. Qxd5 {[%emt 0:00:45]} cxd5 {[%emt 0:00:06]} 28. f3 {[%emt 0:01:20]} Rac8 29. Nb3 {[%emt 0:03:01]} f5 {[%emt 0:03:28]} 30. Nd2 {[%emt 0:01:04]} Kf7 {[%emt 0:01:52]} 31. Kf2 {[%emt 0:01:19]} Kf6 32. Rac1 {[%emt 0:02:43]} Re7 {[%emt 0:01:52]} 33. c4 e4 34. dxe4 {[%emt 0:01:45]} dxe4 {[%emt 0:01:53]} 35. Nxe4+ {[%emt 0:00:47]} Nxe4+ {[%emt 0:00:38]} 36. fxe4 {[%emt 0:00:02]} fxe4 {[%emt 0:00:30]} 37. Ke3 g5 {[%emt 0:01:19]} 38. Rd4 {[%emt 0:01:11]} Rce8 {[%emt 0:00:21]} 39. Rf1+ {[%emt 0:00:32]} Kg6 {[%emt 0:00:09]} 40. Rd6+ {[%emt 0:01:39]} Kg7 {[%emt 0:00:26]} 41. Rf5 {[%emt 0:00:43]} h6 {[%emt 0:00:20]} 42. Rff6 {[%emt 0:00:43]} Rh8 {[%emt 0:00:19]} 43. Rg6+ {[%emt 0:00:07]} Kf7 {[%emt 0:00:16]} 44. Rxh6 {[%emt 0:00:13]} Rb8 {[%emt 0:00:32]} 45. Rh7+ {[%emt 0:00:17]} 1-0

[Event "Hungary Olimpic Hopes 2022"]
[Site "Tapolca"]
[Date "2022.06.24"]
[Round "3.9"]
[White "Bod, Marton"]
[Black "Kerekes, Laszlo Fulop"]
[Result "1-0"]
[ECO "B78"]
[WhiteElo "1738"]
[BlackElo "1455"]
[Annotator "NA RC"]
[PlyCount "49"]
[EventDate "2022.06.23"]
[EventType "swiss"]
[EventCountry "HUN"]
[SourceTitle "playchess.com"]
[Source "ChessBase"]
[SourceQuality "1"]
[TimeControl "5400+30"]

1. e4 {[%emt 0:00:06]} c5 {[%emt 0:00:22]} 2. Nf3 {[%emt 0:00:49]} d6 {[%emt 0:00:39]} 3. d4 {[%emt 0:01:01]} cxd4 {[%emt 0:00:35]} 4. Nxd4 {[%emt 0:00:32]} Nf6 {[%emt 0:00:23]} 5. Nc3 {[%emt 0:00:21]} g6 {[%emt 0:00:33]} 6. Be3 {[%emt 0:00:48]} Bg7 {[%emt 0:00:55]} 7. f3 {[%emt 0:00:59]} O-O {[%emt 0:00:39]} 8. Bc4 {[%emt 0:00:55]} Nc6 {[%emt 0:02:12]} 9. Qd2 {[%emt 0:00:30]} Bd7 {[%emt 0:01:06]} 10. O-O-O {[%emt 0:01:19]} Rc8 {[%emt 0:01:11]} 11. Bb3 {[%emt 0:00:35]} a6 {[%emt 0:04:23]} 12. h4 {[%emt 0:01:23]} h5 13. g4 {[%emt 0:07:41]} Qa5 {[%emt 0:08:37]} 14. gxh5 {[%emt 0:01:35]} Nxh5 {[%emt 0:00:39]} 15. Rhg1 {[%emt 0:00:43]} Bf6 {[%emt 0:12:52]} 16. Rxg6+ {[%emt 0:04:37]} Ng7 {[%emt 0:00:59]} 17. Nxc6 {[%emt 0:00:50]} Rxc6 {[%emt 0:09:36]} 18. Bd4 {[%emt 0:06:18]} Rxc3 {[%emt 0:01:47]} 19. Bxc3 {[%emt 0:01:30]} Bxc3 {[%emt 0:01:00]} 20. bxc3 {[%emt 0:00:43]} e6 {[%emt 0:03:47]} 21. Rg5 {[%emt 0:00:43]} Qb6 {[%emt 0:02:30]} 22. Rdg1 Kh8 23. Rh5+ {[%emt 0:01:52]} Kg8 {[%emt 0:00:44]} 24. Rxg7+ {[%emt 0:00:00]} Kxg7 {[%emt 0:00:15]} 25. Qg5# 1-0

[Event "Hungary Olimpic Hopes 2022"]
[Site "Tapolca"]
[Date "2022.06.24"]
[Round "3.10"]
[White "Juhasz, Edmond"]
[Black "Berla, Zoltan Mate"]
[Result "1/2-1/2"]
[ECO "B31"]
[WhiteElo "1479"]
[BlackElo "1454"]
[Annotator "NA RC"]
[PlyCount "92"]
[EventDate "2022.06.23"]
[EventType "swiss"]
[EventCountry "HUN"]
[SourceTitle "playchess.com"]
[Source "ChessBase"]
[SourceQuality "1"]
[TimeControl "5400+30"]

1. e4 {[%emt 0:00:20]} c5 {[%emt 0:00:11]} 2. Nf3 {[%emt 0:00:27]} Nc6 {[%emt 0:00:11]} 3. Bb5 {[%emt 0:00:14]} g6 {[%emt 0:06:33]} 4. Nc3 {[%emt 0:02:23]} Bg7 {[%emt 0:01:32]} 5. d3 {[%emt 0:03:05]} a6 {[%emt 0:05:59]} 6. Bxc6 {[%emt 0:01:32]} bxc6 {[%emt 0:01:53]} 7. Be3 {[%emt 0:01:27]} d6 8. O-O {[%emt 0:01:09]} e5 9. h3 {[%emt 0:01:50]} Ne7 {[%emt 0:06:02]} 10. Qd2 {[%emt 0:07:16]} h6 {[%emt 0:03:51]} 11. Nh2 {[%emt 0:04:57]} g5 12. f3 Ng6 {[%emt 0:15:11]} 13. Ne2 {[%emt 0:02:32]} O-O {[%emt 0:03:23]} 14. c3 f5 15. d4 {[%emt 0:07:21]} cxd4 {[%emt 0:02:01]} 16. cxd4 {[%emt 0:00:29]} f4 {[%emt 0:00:07]} 17. Bf2 {[%emt 0:00:34]} h5 {[%emt 0:02:43]} 18. dxe5 {[%emt 0:09:12]} Bxe5 {[%emt 0:03:55]} 19. Bd4 {[%emt 0:01:38]} Qe7 {[%emt 0:03:34]} 20. Rad1 {[%emt 0:05:30]} Rd8 {[%emt 0:03:46]} 21. Bb6 {[%emt 0:02:45]} Rd7 {[%emt 0:06:14]} 22. Nd4 {[%emt 0:02:00]} Bxd4+ {[%emt 0:03:49]} 23. Bxd4 {[%emt 0:00:47]} Ne5 {[%emt 0:01:58]} 24. Bxe5 Qxe5 {[%emt 0:01:58]} 25. Qd4 {[%emt 0:01:56]} Qxd4+ {[%emt 0:02:11]} 26. Rxd4 {[%emt 0:00:42]} d5 {[%emt 0:03:32]} 27. exd5 {[%emt 0:01:56]} cxd5 {[%emt 0:01:07]} 28. Re1 {[%emt 0:00:37]} Bb7 {[%emt 0:01:52]} 29. Nf1 {[%emt 0:12:16]} Rc8 {[%emt 0:03:10]} 30. Nd2 {[%emt 0:03:03]} Kg7 {[%emt 0:02:31]} 31. Re6 {[%emt 0:07:08]} Rc6 {[%emt 0:03:14]} 32. Rxc6 {[%emt 0:02:02]} Bxc6 {[%emt 0:00:05]} 33. Nb3 {[%emt 0:01:02]} Kf6 {[%emt 0:01:42]} 34. Nc5 {[%emt 0:01:11]} Ra7 {[%emt 0:00:06]} 35. Kf2 {[%emt 0:01:03]} Ke5 {[%emt 0:00:33]} 36. Rd2 {[%emt 0:00:36]} Kd6 {[%emt 0:00:37]} 37. Ne4+ {[%emt 0:01:23]} Ke5 {[%emt 0:01:32]} 38. Nc5 Bb5 39. a4 {[%emt 0:05:30]} Bc4 {[%emt 0:02:38]} 40. b3 {[%emt 0:03:51]} Rc7 {[%emt 0:00:18]} 41. bxc4 {[%emt 0:00:56]} Rxc5 {[%emt 0:00:09]} 42. cxd5 {[%emt 0:04:51]} Rxd5 {[%emt 0:00:08]} 43. Rb2 {[%emt 0:01:03]} h4 {[%emt 0:01:16]} 44. Rb6 {[%emt 0:01:26]} Ra5 {[%emt 0:00:24]} 45. Rb4 {[%emt 0:00:14]} Kd5 {[%emt 0:00:35]} 46. Ke2 {[%emt 0:00:41]} Kc5 {[%emt 0:00:12]} 1/2-1/2

[Event "Hungary Olimpic Hopes 2022"]
[Site "Tapolca"]
[Date "2022.06.24"]
[Round "3.11"]
[White "Lehocz, Jozsef Jr."]
[Black "Baki, Bence"]
[Result "1-0"]
[ECO "C44"]
[WhiteElo "1963"]
[BlackElo "1566"]
[Annotator "RC"]
[PlyCount "59"]
[EventDate "2022.06.23"]
[EventType "swiss"]
[EventCountry "HUN"]
[SourceTitle "playchess.com"]
[Source "ChessBase"]
[SourceQuality "1"]
[TimeControl "5400+30"]

1. e4 {[%emt 0:00:02]} e5 {[%emt 0:00:06]} 2. Nf3 {[%emt 0:00:04]} Nc6 {[%emt 0:00:09]} 3. d4 {[%emt 0:00:05]} exd4 {[%emt 0:00:07]} 4. Bb5 {[%emt 0:00:06]} Bc5 {[%emt 0:01:14]} 5. O-O {[%emt 0:00:16]} Nge7 {[%emt 0:00:12]} 6. Ng5 {[%emt 0:01:15]} d5 {[%emt 0:04:29]} 7. Qh5 {[%emt 0:12:24]} Ng6 {[%emt 0:05:27]} 8. Re1 {[%emt 0:09:32]} Be7 {[%emt 0:06:47]} 9. f4 {[%emt 0:11:50]} dxe4 {[%emt 0:01:08]} 10. Nxf7 Kxf7 {[%emt 0:01:37]} 11. f5 {[%emt 0:00:58]} Bf6 12. fxg6+ {[%emt 0:03:46]} hxg6 {[%emt 0:00:45]} 13. Bc4+ {[%emt 0:00:19]} Kf8 {[%emt 0:00:26]} 14. Qxh8+ {[%emt 0:00:15]} Ke7 {[%emt 0:00:50]} 15. Rxe4+ Ne5 {[%emt 0:00:38]} 16. Rxe5+ {[%emt 0:01:08]} Bxe5 17. Bg5+ {[%emt 0:00:00]} Bf6 {[%emt 0:00:52]} 18. Qxg7+ {[%emt 0:00:13]} Kd6 {[%emt 0:00:43]} 19. Bxf6 {[%emt 0:01:27]} Qe8 {[%emt 0:00:21]} 20. Na3 Qe3+ {[%emt 0:00:38]} 21. Kh1 {[%emt 0:00:46]} Bh3 22. Nb5+ {[%emt 0:00:25]} Kc5 {[%emt 0:01:51]} 23. Qxc7+ {[%emt 0:00:00]} Kb4 {[%emt 0:00:36]} 24. a3+ Qxa3 {[%emt 0:01:58]} 25. bxa3+ {[%emt 0:00:44]} Ka4 {[%emt 0:00:12]} 26. Nc3+ dxc3 27. Bb5+ {[%emt 0:01:12]} Kxb5 {[%emt 0:00:54]} 28. Rb1+ Ka4 {[%emt 0:00:31]} 29. Rb4+ {[%emt 0:00:13]} Kxa3 {[%emt 0:00:16]} 30. Qa5# 1-0

[Event "Hungary Olimpic Hopes 2022"]
[Site "Tapolca"]
[Date "2022.06.24"]
[Round "3.12"]
[White "Herczeg, Benedek"]
[Black "Szabo, Akos"]
[Result "1/2-1/2"]
[ECO "C50"]
[WhiteElo "1413"]
[BlackElo "1662"]
[Annotator "NA RC"]
[PlyCount "75"]
[EventDate "2022.06.23"]
[EventType "swiss"]
[EventCountry "HUN"]
[SourceTitle "playchess.com"]
[Source "ChessBase"]
[SourceQuality "1"]
[TimeControl "5400+30"]

1. e4 {[%emt 0:00:06]} e5 {[%emt 0:00:13]} 2. Nf3 {[%emt 0:00:05]} Nc6 {[%emt 0:00:05]} 3. Bc4 {[%emt 0:00:04]} Bc5 {[%emt 0:00:17]} 4. d3 {[%emt 0:00:07]} Nf6 {[%emt 0:00:20]} 5. Nc3 {[%emt 0:00:44]} h6 {[%emt 0:00:07]} 6. Be3 {[%emt 0:00:00]} Bb6 {[%emt 0:00:25]} 7. Qd2 {[%emt 0:01:18]} d6 {[%emt 0:00:31]} 8. h3 {[%emt 0:00:10]} O-O {[%emt 0:01:20]} 9. O-O {[%emt 0:00:08]} Bd7 {[%emt 0:00:47]} 10. Ne2 {[%emt 0:06:12]} Ne7 {[%emt 0:00:48]} 11. Ng3 {[%emt 0:02:30]} Ng6 {[%emt 0:00:21]} 12. c3 {[%emt 0:01:49]} c6 {[%emt 0:01:01]} 13. Bb3 {[%emt 0:02:00]} Qc7 {[%emt 0:02:08]} 14. Rac1 {[%emt 0:07:11]} Rad8 {[%emt 0:00:31]} 15. d4 {[%emt 0:04:03]} Rfe8 16. d5 {[%emt 0:00:41]} Bxe3 {[%emt 0:01:53]} 17. fxe3 {[%emt 0:01:38]} c5 {[%emt 0:06:47]} 18. c4 {[%emt 0:01:58]} b5 {[%emt 0:01:33]} 19. Qc2 {[%emt 0:00:59]} Qb6 {[%emt 0:01:27]} 20. Nf5 {[%emt 0:01:48]} a6 {[%emt 0:03:28]} 21. N3h4 {[%emt 0:06:46]} Kh7 {[%emt 0:10:18]} 22. Rf3 {[%emt 0:02:27]} Rf8 23. Rcf1 {[%emt 0:01:00]} a5 {[%emt 0:02:19]} 24. a3 a4 {[%emt 0:02:29]} 25. Ba2 {[%emt 0:02:06]} b4 {[%emt 0:03:53]} 26. Bb1 {[%emt 0:02:26]} Nxh4 {[%emt 0:02:52]} 27. Nxh4 bxa3 {[%emt 0:00:23]} 28. bxa3 {[%emt 0:00:39]} Qb3 {[%emt 0:00:24]} 29. Qc1 {[%emt 0:04:17]} Rb8 {[%emt 0:05:20]} 30. R3f2 {[%emt 0:00:53]} Rb7 {[%emt 0:02:28]} 31. Ba2 {[%emt 0:05:21]} Qb6 {[%emt 0:01:40]} 32. Qc2 {[%emt 0:01:40]} Rfb8 {[%emt 0:00:30]} 33. Rb1 Qa7 {[%emt 0:08:22]} 34. Rxb7 {[%emt 0:00:58]} Rxb7 {[%emt 0:08:08]} 35. Nf5 {[%emt 0:02:13]} Qb8 {[%emt 0:01:22]} 36. Ne7 {[%emt 0:00:16]} Qa7 {[%emt 0:03:10]} 37. Nf5 {[%emt 0:02:01]} Rb6 38. Ng3 1/2-1/2

[Event "Hungary Olimpic Hopes 2022"]
[Site "Tapolca"]
[Date "2022.06.24"]
[Round "3.13"]
[White "Biro, Beata"]
[Black "Molnar, Dalma Reka"]
[Result "0-1"]
[ECO "B24"]
[WhiteElo "1480"]
[BlackElo "1554"]
[Annotator "NA RC"]
[PlyCount "174"]
[EventDate "2022.06.23"]
[EventType "swiss"]
[EventCountry "HUN"]
[SourceTitle "playchess.com"]
[Source "ChessBase"]
[SourceQuality "1"]
[TimeControl "5400+30"]

1. e4 {[%emt 0:00:03]} c5 {[%emt 0:00:09]} 2. Nc3 {[%emt 0:00:14]} Nc6 {[%emt 0:00:11]} 3. Bb5 {[%emt 0:00:17]} Nd4 {[%emt 0:00:23]} 4. Bc4 {[%emt 0:00:15]} g6 {[%emt 0:00:10]} 5. Nge2 {[%emt 0:00:32]} Bg7 {[%emt 0:00:12]} 6. O-O {[%emt 0:00:49]} Nf6 {[%emt 0:01:08]} 7. d3 {[%emt 0:00:33]} O-O {[%emt 0:06:34]} 8. f4 {[%emt 0:01:07]} d6 {[%emt 0:04:56]} 9. Nxd4 {[%emt 0:02:51]} cxd4 {[%emt 0:00:38]} 10. Ne2 {[%emt 0:00:16]} d5 {[%emt 0:02:52]} 11. e5 {[%emt 0:04:02]} dxc4 {[%emt 0:01:16]} 12. exf6 {[%emt 0:00:13]} Bxf6 {[%emt 0:00:34]} 13. dxc4 {[%emt 0:00:27]} Bf5 {[%emt 0:01:56]} 14. Ng3 {[%emt 0:02:22]} Qd7 {[%emt 0:03:47]} 15. Bd2 d3 {[%emt 0:09:22]} 16. Nxf5 {[%emt 0:03:53]} Qxf5 {[%emt 0:00:09]} 17. cxd3 {[%emt 0:00:23]} Qxd3 {[%emt 0:00:12]} 18. Bc3 {[%emt 0:01:02]} Qe3+ {[%emt 0:00:47]} 19. Kh1 {[%emt 0:00:36]} Bxc3 {[%emt 0:00:08]} 20. Rf3 {[%emt 0:00:52]} Qe4 21. Rxc3 {[%emt 0:01:05]} Qxf4 {[%emt 0:03:49]} 22. Qd7 {[%emt 0:00:39]} Qe4 {[%emt 0:01:40]} 23. c5 {[%emt 0:02:14]} Rfd8 {[%emt 0:03:14]} 24. Qb5 Rd2 {[%emt 0:08:03]} 25. Rg1 {[%emt 0:03:28]} Rad8 {[%emt 0:01:57]} 26. Rf3 {[%emt 0:01:38]} Qc6 {[%emt 0:05:08]} 27. Qc4 {[%emt 0:00:50]} Qd5 {[%emt 0:01:28]} 28. Qb3 {[%emt 0:02:10]} Qxb3 {[%emt 0:01:00]} 29. Rxb3 {[%emt 0:01:09]} R8d7 {[%emt 0:00:41]} 30. h3 {[%emt 0:01:27]} e5 {[%emt 0:01:20]} 31. Kh2 {[%emt 0:01:10]} f5 {[%emt 0:00:51]} 32. Re1 {[%emt 0:00:28]} e4 {[%emt 0:00:08]} 33. h4 {[%emt 0:00:26]} Rc2 {[%emt 0:00:46]} 34. Rb5 {[%emt 0:00:44]} Rc7 {[%emt 0:00:49]} 35. Ra5 {[%emt 0:01:17]} Rxb2 {[%emt 0:01:03]} 36. Rxa7 {[%emt 0:00:06]} Rxc5 {[%emt 0:00:09]} 37. Rd1 {[%emt 0:00:15]} Rc7 38. Ra8+ {[%emt 0:00:57]} Kg7 {[%emt 0:00:28]} 39. Kg3 {[%emt 0:00:55]} Re7 {[%emt 0:01:23]} 40. Re1 Rf7 {[%emt 0:03:12]} 41. Kh3 {[%emt 0:01:30]} b5 {[%emt 0:01:08]} 42. a3 {[%emt 0:01:03]} Ra2 {[%emt 0:00:45]} 43. Re3 {[%emt 0:01:13]} Rb7 44. Rc8 {[%emt 0:00:43]} Ra7 {[%emt 0:03:00]} 45. Rcc3 {[%emt 0:00:21]} Rd7 {[%emt 0:02:29]} 46. g4 {[%emt 0:01:27]} Rad2 {[%emt 0:02:04]} 47. gxf5 {[%emt 0:01:51]} R2d3 {[%emt 0:01:45]} 48. Kg4 Rxe3 {[%emt 0:05:00]} 49. Rxe3 {[%emt 0:00:48]} Rd3 {[%emt 0:00:43]} 50. Rxe4 {[%emt 0:00:19]} gxf5+ {[%emt 0:00:29]} 51. Kxf5 {[%emt 0:00:11]} Rxa3 {[%emt 0:00:22]} 52. Rb4 {[%emt 0:00:19]} Ra5 {[%emt 0:00:35]} 53. h5 {[%emt 0:00:33]} Kh6 {[%emt 0:00:29]} 54. Kf6 {[%emt 0:00:26]} Kxh5 {[%emt 0:00:35]} 55. Kg7 Ra7+ {[%emt 0:00:37]} 56. Kf6 {[%emt 0:00:33]} Rb7 {[%emt 0:00:07]} 57. Kf5 {[%emt 0:00:30]} Kh6 {[%emt 0:00:46]} 58. Kf6 {[%emt 0:00:11]} Rb6+ {[%emt 0:00:22]} 59. Kf5 {[%emt 0:00:10]} Kg7 {[%emt 0:00:37]} 60. Kg5 {[%emt 0:00:21]} h6+ {[%emt 0:00:15]} 61. Kh5 {[%emt 0:00:14]} Kh7 {[%emt 0:00:43]} 62. Kh4 {[%emt 0:00:16]} Kg6 {[%emt 0:00:25]} 63. Kg4 {[%emt 0:00:09]} Kf6 64. Kf4 {[%emt 0:00:23]} Ke6 {[%emt 0:02:19]} 65. Ke4 {[%emt 0:00:33]} Kd6 {[%emt 0:00:12]} 66. Kd4 {[%emt 0:00:23]} Kc6 {[%emt 0:00:37]} 67. Kd3 {[%emt 0:00:17]} Kd5 {[%emt 0:00:57]} 68. Rh4 {[%emt 0:00:39]} Kc5 69. Kc3 {[%emt 0:00:42]} b4+ {[%emt 0:00:55]} 70. Kb3 {[%emt 0:00:14]} Kd5 71. Rh5+ {[%emt 0:00:46]} Ke4 {[%emt 0:01:08]} 72. Rh4+ {[%emt 0:01:02]} Kf5 {[%emt 0:00:20]} 73. Rc4 h5 {[%emt 0:02:31]} 74. Rc5+ {[%emt 0:01:26]} Kg4 {[%emt 0:00:32]} 75. Rc4+ {[%emt 0:00:16]} Kg3 {[%emt 0:00:18]} 76. Rd4 {[%emt 0:00:14]} h4 {[%emt 0:00:37]} 77. Rd3+ {[%emt 0:00:09]} Kg2 {[%emt 0:01:58]} 78. Rd2+ {[%emt 0:00:08]} Kf1 {[%emt 0:01:17]} 79. Rh2 {[%emt 0:00:08]} Rh6 {[%emt 0:00:06]} 80. Kxb4 {[%emt 0:00:32]} h3 {[%emt 0:00:11]} 81. Rc2 {[%emt 0:00:43]} h2 {[%emt 0:00:18]} 82. Rc1+ {[%emt 0:00:03]} Ke2 {[%emt 0:00:39]} 83. Rh1 {[%emt 0:00:23]} Kf2 84. Kc3 {[%emt 0:00:58]} Kg2 {[%emt 0:00:14]} 85. Rd1 {[%emt 0:00:14]} h1=Q {[%emt 0:00:06]} 86. Rd2+ {[%emt 0:00:53]} Kg3 {[%emt 0:00:11]} 87. Rd3+ {[%emt 0:00:08]} Qf3 {[%emt 0:00:06]} 0-1